Cogmind - Beta 15 @@@ ROGUE MODE // 2025.06.04 @ 08:29:32 Player: puppuppit Result: Destroyed by EI-Q7N(R) with Subdweller Machine Gun Performance ------------- Evolutions (0) 0 Regions Visited (3) 600 Robots Destroyed (66) 330 Value Destroyed (1387) 1387 Prototype IDs (0) 0 Alien Tech Used (0) 0 Bonus (33) 33 TOTAL SCORE: 2350 Bonus ------- High Alert Combat Kills 8 Follower Combat Kills 25 Cogmind --------- Core Integrity 0/250 Matter 260/300 Energy 160/160 System Corruption 1% Temperature Cool (0) Movement Treading (160) Location -10/Subcaves Parts ------- > --- POWER (1) -------- Light Nuclear Core > --- PROPULSION (2) --- Light Treads Spiked Treads > --- UTILITY (2) ------ Medium Storage Unit Structural Scanner > --- WEAPON (2) ------- Battle Cannon Grenade Launcher > --- INVENTORY (10) --- High-capacity Matter Pod (200) Experimental Sensor Array Makeshift Kinetic Plating Scrap Shield Subdweller Beam Cannon Barrage Gun Barrage Gun Light Cannon Subdweller Shrapnel Launcher Peak State ------------ > --- POWER ------------ Light Nuclear Core > --- PROPULSION ------- Light Treads Spiked Treads > --- UTILITY ---------- Medium Storage Unit Makeshift Kinetic Plating > --- WEAPON ----------- Battle Cannon Subdweller Shrapnel Launcher > --- INVENTORY -------- High-capacity Matter Pod Structural Scanner Experimental Sensor Array Transport Network Coupler Subdweller Beam Cannon Battle Rifle Barrage Gun Barrage Gun Light Cannon Grenade Launcher [Rating: 17] Favorites ----------- Power Light Nuclear Core Engine Light Ion Engine Power Core Light Nuclear Core Propulsion Light Treads Treads Light Treads Wheel Wheel Utility Medium Storage Unit Device Improved Heat Sink Storage Medium Storage Unit Processor Targeting Computer Protection Makeshift Kinetic Plating Weapon Light Cannon Energy Gun EM Pulse Gun Ballistic Gun Light Assault Rifle Ballistic Cannon Light Cannon Launcher Grenade Launcher Build | -11 -10 -10 -10 ------- Run | Yrd Mat Min Sub Slots Evolved . | . . . . Power . | . . . . Propulsion . | . . . . Utility . | . . . . Weapon . | . . . . Parts Attached 26 | 8 8 7 3 Power 3 | 1 1 1 . Engine 1 | 1 . . . Core 2 | . 1 1 . Reactor . | . . . . Propulsion 5 | 4 . . 1 Treads 3 | 2 . . 1 Leg . | . . . . Wheel 2 | 2 . . . Hover . | . . . . Flight . | . . . . Utility 9 | 1 3 4 1 Device 3 | . 1 2 . Storage 4 | 1 2 1 . Processor 1 | . . 1 . Hackware . | . . . . Protection 1 | . . . 1 Artifact . | . . . . Weapon 9 | 2 4 2 1 Energy Gun 3 | 1 2 . . Energy Cannon . | . . . . Ballistic Gun 1 | 1 . . . Ballistic Cannon 3 | . 2 1 . Launcher 2 | . . 1 1 Special Weapon . | . . . . Impact Weapon . | . . . . Slashing Weapon . | . . . . Piercing Weapon . | . . . . Special Melee Weapon . | . . . . Unidentified Prototypes . | . . . . Parts Lost 4 | . 1 1 2 Power 1 | . . 1 . Propulsion 1 | . . . 1 Utility . | . . . . Weapon 2 | . 1 . 1 Highest Loss Streak 2 | . 1 1 2 To Critical Strikes . | . . . . Average Backups 8 | . 7 9 9 Power 1 | . 1 . . Propulsion . | . . . . Utility 3 | . 3 4 3 Weapon 3 | . 2 4 5 Tool/Special . | . . . . Unused Backups 18 | . 1 5 12 Power 1 | . . . 1 Propulsion . | . . . . Utility 9 | . . 4 5 Weapon 8 | . 1 1 6 Tool/Special . | . . . . Average Slot Usage (%) 99 | . 98 99 99 Core 13 | . 12 13 14 Treads 27 | . 28 28 27 Device 11 | . 12 12 8 Storage 14 | . 14 14 14 Processor 1 | . . 1 3 Energy Gun 2 | . 4 . . Ballistic Gun 1 | . 3 . . Ballistic Cannon 23 | . 20 28 27 Peak Build Rating 17 | 6 13 14 17 Average Rating 11 | 5 11 12 13 On Entrance 7 | . 6 12 11 Naked Turns . | . . . . Heaviest Build 52 | 11 52 22 28 Greatest Support 40 | 40 40 40 40 Greatest Overweight (x) 1 | . 1 . 1 Average Overweight (x) . | . . . . Largest Inventory Capacity 20 | 8 20 10 10 Average Capacity 10 | 7 10 10 10 Most Carried 10 | 2 10 10 10 Average Carried 8 | . 7 9 9 Final Capacity 10 | 8 10 10 10 Final Carried 10 | 2 10 10 10 Class Distribution -------------------- 100% | Mutant Dominant Class ---------------- Mutant | -10/Materials Mutant | -10/Mines Mutant | -10/Subcaves Resources | -11 -10 -10 -10 ----------- Run | Yrd Mat Min Sub Matter Collected 1930 | 394 664 453 419 Remotely . | . . . . Salvage Created 1991 | 210 1495 223 63 Parts 115 | 11 83 17 4 Haulers Intercepted 2 | . 2 . . Recyclers Shooed 5 | . 4 1 . Parts Field Recycled . | . . . . Retrieved Matter . | . . . . Parts Self-Destructed 2 | . . . 2 Prevented . | . . . . Kills | -11 -10 -10 -10 ------- Run | Yrd Mat Min Sub Combat Hostiles Destroyed 33 | . 21 7 5 Guns 6 | . 6 . . Cannons 20 | . 14 4 2 AOE 7 | . 1 3 3 Classes Destroyed 11 | 3 7 . 1 Worker 5 | 1 4 . . Builder 3 | . 2 1 . Tunneler 8 | 5 1 2 . Hauler 2 | . 2 . . Recycler 9 | 1 7 1 . Mechanic 1 | . 1 . . Operator 2 | . 2 . . Watcher 3 | . 3 . . Swarmer 6 | . 3 3 . Grunt 23 | . 18 4 1 Subdweller 4 | . . . 4 Best Kill Streak 9 | 5 9 3 2 Combat Bots Only 4 | . 4 3 2 Max Kills in Single Turn 2 | 1 1 2 1 Gunslinging . | . . . . Exploded 2 | . 1 2 1 Melee . | . . . . Uniques/NPCs Destroyed . | . . . . Combat | -11 -10 -10 -10 -------- Run | Yrd Mat Min Sub Hostile Shots Fired 114 | . 66 18 30 Missed 32 | . 16 8 8 Hits 82 | . 50 10 22 Projectile 82 | . 50 10 22 Critical Strikes 2 | . 2 . . Damage Taken 1193 | . 606 108 479 Core 251 | . 104 39 108 Absorbed by Shields . | . . . . Core Remaining (%) 100 | 100 . . . Volleys Fired 174 | 24 104 20 26 Largest 2 | 2 2 2 2 Hottest 105 | 60 105 63 73 Shots Fired 330 | 40 202 38 50 Gun 126 | 40 86 . . Cannon 191 | . 116 36 39 Launcher 13 | . . 2 11 Special . | . . . . Kinetic 257 | 24 152 36 45 Thermal 10 | . 10 . . Explosive 7 | . . 2 5 Electromagnetic 56 | 16 40 . . Robot Hit Streak 14 | 6 13 10 14 Robot Miss Streak 5 | 2 5 2 2 Penetration Max . | . . . . Secondary Targets . | . . . . Shots Hit Robots 205 | 27 118 25 35 Core Hits 86 | 11 54 12 9 Critical Kills . | . . . . Critical Parts Destroyed 1 | . 1 . . Critical Strikes 9 | . 6 3 . Burn 1 | . 1 . . Destroy 1 | . 1 . . Blast 7 | . 4 3 . Melee Attacks . | . . . . Impact . | . . . . Slashing . | . . . . Piercing . | . . . . Sneak Attacks . | . . . . Combat Hostiles . | . . . . Follow-up Attacks . | . . . . Damage Inflicted 3880 | 291 1850 608 1131 Guns 895 | 254 641 . . Cannons 2123 | . 1086 476 561 Explosions 855 | 37 116 132 570 Melee . | . . . . Ramming 7 | . 7 . . Kinetic 2742 | 134 1244 476 888 Thermal 211 | 37 174 . . Explosive 375 | . . 132 243 Electromagnetic 545 | 120 425 . . Impact . | . . . . Slashing . | . . . . Piercing . | . . . . Highest Corruption 1 | . 1 1 1 Average Corruption 1 | . 1 1 1 Corruption Purged . | . . . . Corruption Blocked . | . . . . Effects 9 | . . 5 4 Message Errors 3 | . . 1 2 Matter Fused 1 | . . 1 . Heat Flow Errors 1 | . . 1 . Energy Discharges 1 | . . . 1 Data Loss (minor) 2 | . . 1 1 Alerts 1 | . . 1 . Overload Shots . | . . . . Overflow Damage 66 | 7 39 8 12 Projectiles 18 | . . 6 12 Explosions 48 | 7 39 2 . Melee . | . . . . Knockbacks 19 | . 6 10 3 Impact . | . . . . Kinetic 18 | . 6 9 3 Secondary 1 | . . 1 . Self-Inflicted Damage 55 | . 32 23 . Shots 2 | . 1 1 . Rammed 1 | . 1 . . Targets Rammed 1 | . 1 . . Kicked . | . . . . Crushed . | . . . . Highest Temperature 124 | 40 124 122 . Average Temperature 43 | 20 56 27 . Received Heat Transfer 375 | . 306 15 54 Siege Activations . | . . . . Martial Activations . | . . . . Shielding Activations . | . . . . Robots Disrupted . | . . . . Combat Hostiles . | . . . . Robots Corrupted . | . . . . Combat Hostiles . | . . . . Parts Fried . | . . . . Impact Corruptions . | . . . . Robots Melted . | . . . . Combat Hostiles . | . . . . Parts Melted 1 | . 1 . . Heat Transferred 472 | 50 422 . . Parts Sabotaged . | . . . . Parts Stolen . | . . . . Parts Stripped . | . . . . Power Chain Reactions 3 | 1 2 . . Alert | -11 -10 -10 -10 ------- Run | Yrd Mat Min Sub Maximum Alert Level 2 | . 2 . . Low Security (%) 64 | 100 42 100 . Level 1 33 | . 53 . . Level 2 2 | . 3 . . Level 3 . | . . . . Level 4 . | . . . . Level 5 . | . . . . High Security . | . . . . Max Security . | . . . . Peak Influence 409 | 10 409 151 . Initial 148 | . . 148 . Average 161 | 2 206 104 . Influence Increases 1154 | 35 862 206 51 Destroy 0b10 Robot/C 600 | . 420 140 40 Destroy 0b10 Robot/NC 165 | 35 110 20 . Destroy Leader 170 | . 130 30 10 Allied During Kill 1 | . . . 1 Successful Hack 31 | . 31 . . Select Force Hacks 30 | . 30 . . Disable Machine 120 | . 120 . . Destroy Structure 37 | . 21 16 . Influence Decreases 1154 | 35 480 530 109 Entered New Map 265 | . . 234 31 Time Decay 851 | 35 470 286 60 Lost Part 20 | . 10 10 . Lost Ally 18 | . . . 18 Squads Dispatched 9 | . 9 . . Investigation 5 | . 5 . . Extermination . | . . . . Reinforcement 4 | . 4 . . Assault . | . . . . Garrison . | . . . . Intercept . | . . . . Searches Triggered . | . . . . Construction Impeded . | . . . . Haulers Reinforced . | . . . . Active Scanning Responses . | . . . . Cargo Convoy Interrupts . | . . . . Stealth | -11 -10 -10 -10 --------- Run | Yrd Mat Min Sub Distress Signals 3 | . 3 . . Communications Jammed . | . . . . Distress Signals . | . . . . Times Spotted 47 | . 33 6 8 Peak Tracking Total 4 | . 4 3 2 Tactical Retreats . | . . . . Traps | -11 -10 -10 -10 ------- Run | Yrd Mat Min Sub Traps Triggered 1 | . 1 . . Indirectly . | . . . . Trap Hack Attempts . | . . . . Triggered . | . . . . Disarmed . | . . . . Reprogrammed . | . . . . Reused . | . . . . Traps Extracted . | . . . . Installed . | . . . . Triggered . | . . . . Machines | -11 -10 -10 -10 ---------- Run | Yrd Mat Min Sub Machines Disabled 8 | . 8 . . Max in Single Turn 4 | . 4 . . Machines Repaired . | . . . . Machines Dismantled . | . . . . Machines Sabotaged . | . . . . Overloaded Fab Kills . | . . . . Hacking | -11 -10 -10 -10 --------- Run | Yrd Mat Min Sub Machines Accessed 7 | . 7 . . Terminals 5 | . 5 . . Fabricators . | . . . . Repair Stations . | . . . . Recycling Units 2 | . 2 . . Scanalyzers . | . . . . Garrison Access . | . . . . Total Hacks 31 | . 31 . . Successful 11 | . 11 . . Failed 19 | . 19 . . Catastrophic 2 | . 2 . . Database Lockouts 1 | . 1 . . Manual 21 | . 21 . . Terminals 22 | . 22 . . Fabricators . | . . . . Repair Stations . | . . . . Recycling Units 9 | . 9 . . Scanalyzers . | . . . . Garrison Access . | . . . . Terminal Hacks 2 | . 2 . . Robot Analysis 2 | . 2 . . Fabricator Hacks . | . . . . Repair Station Hacks . | . . . . Recycling Unit Hacks 4 | . 4 . . Process 1 | . 1 . . Report Inventory 2 | . 2 . . Retrieve Matter 1 | . 1 . . Scanalyzer . | . . . . Garrison Access Hacks . | . . . . Unauthorized Hacks 5 | . 5 . . Terminals 4 | . 4 . . Botnet 4 | . 4 . . Fabricators . | . . . . Repair Stations . | . . . . Recycling Units 1 | . 1 . . Tunnel 1 | . 1 . . Scanalyzers . | . . . . Garrison Access . | . . . . Data Cores Recovered 1 | . 1 . . Used 1 | . 1 . . Hacking Detections 7 | . 7 . . Full Trace Events 5 | . 5 . . Feedback Events 1 | . 1 . . Corruption 1 | . 1 . . Feedback Blocked . | . . . . Robot Schematics Acquired . | . . . . Robots Built . | . . . . Authchips . | . . . . Time . | . . . . Total Robot Build Rating . | . . . . Part Schematics Acquired . | . . . . Parts Built . | . . . . Authchips . | . . . . Time . | . . . . Total Part Build Rating . | . . . . Parts Repaired . | . . . . Time . | . . . . Parts Recycled . | . . . . Recycled Matter 197 | . 197 . . Retrieved Matter 368 | . 368 . . Retrieved Components . | . . . . Parts Scanalyzed . | . . . . Part Schematics Acquired . | . . . . Parts Damaged . | . . . . Bothacking | -11 -10 -10 -10 ------------ Run | Yrd Mat Min Sub Used RIF Installer . | . . . . Robots Hacked . | . . . . Non-combat . | . . . . Combat . | . . . . Robot Hacks Applied . | . . . . Relay Couplers Released . | . . . . Fabnet Peak Effective % . | . . . . Robots Rewired . | . . . . Allies Hacked . | . . . . Hacks Repelled . | . . . . Allies | -11 -10 -10 -10 -------- Run | Yrd Mat Min Sub Total Allies 1 | . . 1 . Largest Group 1 | . . 1 1 Highest-Rated Group 31 | . . 31 31 Highest-Rated Ally 31 | . . 31 31 Total Orders . | . . . . Ally Attacks 14 | . . . 14 Total Damage 123 | . . . 123 Kills 1 | . . . 1 Allies Corrupted . | . . . . Allies Melted . | . . . . Intel | -11 -10 -10 -10 ------- Run | Yrd Mat Min Sub Active Infowar (turns) 634 | . . 168 466 Structural 596 | . . 130 466 Seismic 38 | . . 38 . Robot Analysis Total 2 | . 2 . . Derelict Logs Recovered . | . . . . Drone Launches . | . . . . Drone Recoveries . | . . . . Exploration | -11 -10 -10 -10 ------------- Run | Yrd Mat Min Sub Turns Passed 2838 | 142 1290 628 778 Spaces Moved 1370 | 51 562 335 422 Core 3 | 3 . . . Treads 1355 | 36 562 335 422 Legs . | . . . . Wheels 12 | 12 . . . Hover . | . . . . Flight . | . . . . Fastest Speed 50 | 50 160 160 160 Average Speed 162 | 137 168 160 160 Slowest Speed 240 | 160 240 160 240 Overloaded Moves . | . . . . Propulsion Burnouts . | . . . . Robots Hopped . | . . . . Potential Cave-ins . | . . . . Cave-ins Triggered . | . . . . Exploration Rate (%) 40 | 3 74 59 27 Regions Visited 3 Branch Regions 2 Pre-discovered Areas 1 | . 1 . . Known Exits Taken . | . . . . Unknown Exits Taken 3 | 1 1 1 . Scrap Searched 5 | . . 2 3 Spaces Dug . | . . . . Terrain Destroyed 136 | 6 18 15 97 Melee . | . . . . Projectile 4 | . . 3 1 AOE 132 | 6 18 12 96 Terrain Rammed . | . . . . Walls Destroyed . | . . . . Machines Disabled . | . . . . Actions | -11 -10 -10 -10 --------- Run | Yrd Mat Min Sub Total 1661 | 84 710 393 474 Wait 39 | . 21 18 . Move 1367 | 50 561 334 422 Hop . | . . . . Pick Up 25 | 2 10 6 7 Fast Attach 9 | 6 1 . 2 Attach 3 | . 1 1 1 Detach 1 | . . . 1 Swap 24 | 2 7 7 8 Drop 18 | . 4 7 7 Fire 174 | 24 104 20 26 Melee . | . . . . Ram . | . . . . Kick . | . . . . Crush 1 | . 1 . . Escape Stasis . | . . . . Rewire . | . . . . Trap . | . . . . Miscellaneous . | . . . . Route ------- -11/Scrapyard -10/Materials (discovered 5 exits: [*Mat x3] / [*Min x2]) -10/Mines -10/Subcaves (discovered 1 exit: [*Mat]) History --------- Turn | Location | Event 7 | -11/Scrapyard | Discovered new exit (range 16) 143 | -11/Scrapyard | Entered Materials 314 | -10/Materials | Build established: Mutant 695 | -10/Materials | Discovered new exit (range 3) 829 | -10/Materials | Discovered new exit (range 11) 1002 | -10/Materials | Discovered new exit (range 12) 1190 | -10/Materials | Discovered new exit (range 15) 1244 | -10/Materials | Central database locked down 1351 | -10/Materials | Discovered new exit (range 11) 1433 | -10/Materials | Entered Mines 1531 | -10/Mines | A weapon hastily lodged in a ceiling crevice suddenly fell to the ground 1727 | -10/Mines | Core integrity fell below 50% 1814 | -10/Mines | Found a damaged Exp. Sensor Array with a note attached 1818 | -10/Mines | Found Prototype Device 1952 | -10/Mines | Received a Mining Laser from a helpful Derelict 2050 | -10/Mines | Discovered new exit (range 7) 2061 | -10/Mines | Entered Subcaves 2061 | -10/Subcaves | Accompanied by 1 ally 2180 | -10/Subcaves | Disturbed a concealed Subdweller 2204 | -10/Subcaves | Core integrity fell below 20% 2828 | -10/Subcaves | Discovered new exit (range 10) 2837 | -10/Subcaves | Ambushed by Subdweller buried in earth 2839 | -10/Subcaves | Destroyed by EI-Q7N(R) with Subdweller Machine Gun Last Messages --------------- 02486_ Subatomizers dissect the Imp. Heat Sink. 02595_ Dropped Mak. Kinetic Plating. 02595_ Dropped Transport Network Coupler. 02597_ Acquired Mak. Kinetic Plating. 02648_ DG-X5P(R) destroyed. 02662_ Acquired 2 matter. 02673_ The unstable cave ceiling collapses. 02698_ Acquired 11 matter. 02704_ System corrupted: Energy discharge (-41). 02738_ The unstable cave ceiling collapses. 02756_ Dropped Battle Rifle. 02757_ The unstable cave ceiling collapses. 02761_ Acquired Scrap Shield. 02788_ Acquired 15 matter. 02793_ Acquired 11 matter. 02794_ Acquired 8 matter. 02802_ Acquired 15 matter. 02812_ Acquired 3 matter. 02828_ EXIT=FOUND 02838_ XC-AR9(R): "ARGHSUB!" Map ----- +----------------------------------------------------+ | ?????????????????????????????????????????????????? | | ?????????????????????????????????????????????????? | | ?????????????????????????????????????????????????? | | ?????????????????????????????????????????????????? | | ?????????????????????????????????????????????????? | | ?????????????????????????????????????????????????? | | ?????????????????????????????????????????????????? | | ?????????????????????????????????????????????????? | | ?????????????????????????????????????????????????? | | ?????????????????????????????????????????????????? | | ?????????????????????????????????????????????????? | | ?????????????????????????????????????????????????? | | ?????????????????????????????????????????????????? | | ?????????????????????????????????????????????????? | | ?????????????????????????????????????????????????? | | ?????????????????????????????????????????????????? | | ?????????????????????????????????????????????????? | | ????????????????#####???????????####?????????????? | | ????????????? ""####???????????#####????????????? | | ????????????###""" # ????????? "##????????????? | | ?????????######""" ######### ""#????????????? | | ????????""#### """ % ####### "??????????????? | | #?????? "" " ## # " "??????????????? | | ##?????##" u R "" " ""?????????????? | | ##?????#""" R " ""#????????????? | | ##???????????## @# # # < "##????????????? | | ##???????????##### # ######??###????????????? | | #####???????????#####% " ##?????????????????????? | | ######????? ##????### "##?????????????????????? | | ####???? ###????## ##?????????????????????? | | ###???? ###????## ##?????????????????????? | | ##??? ##???### ##?????????????????????? | | ### ###??### """##?????????????????????? | | ### ####### % " ## ?????????????????????? | | ## ## ###### "### ?????????????????????? | | ## ### ### ??????????????????????? | | ## ### ## ???????????????????????? | | #### #### ????????????????????????? | | #### #####?????????????????????????? | | #### #####???????????????????????????? | | ### ### ####????????????????????????????? | | ##### #### ##### ????????????????????????? | | ## #### #### ##### ?????????????????????????? | | ## ### ##### ###""""????????????????????????? | | ## #### ### """"##????????????????????????? | | ## ### ### """###????????????????????????? | | # ## ###### ###????????????????????????? | | ! ## ###### ##?????????????????????????? | | ### ## ##?????????????????????????? | | ## ######?????????????????????????? | +----------------------------------------------------+ Best States ------------- Heat Dissipation 39 Energy Generation 14 Energy Capacity 160 Matter Stores 300 Matter Capacity 300 Sight Range 16 Terrain Scan Density 10 Armor Coverage 100 Resistance: KI 10 Evasion (%) 42 Targeting Accuracy 5 Recoil Reduction 2 Item Schematics ----------------- None Robot Schematics ------------------ None Fabricated ------------ Nothing Repaired ---------- Nothing Alien Tech Used ----------------- None Achievements -------------- None Challenges ------------ None Game ------ Seed BiometalGravityBarrier Manual? 0 Play Time 00:17:32 Cumulative 251.7 hours Start 2025.06.03 @ 14:56:32 End 2025.06.04 @ 08:29:32 Sessions 1 Manual Loads 0 Difficulty Rogue Special Mode None Game No. 153 Rogue 153 Adventurer 0 Explorer 0 Win Type - Total 3 Types 1/0/1/1/0/0/0/0/0/0 Lore% 79 Gallery% 65 Achievement% 63 Wizard Run 0 Options --------- Layout 2 ASCII 0 Keyboard 1 Movement Vi Keybinds 0 Fullscreen 1 Font 16/Tamsyn Map View 55x47 Zoom Use 0% Tactical HUD 1 Map Filters NONE Filters NONE Steam 0 RUN: 4492f2d6-0d74-4421-81a8-63ee2408c689